bitfinex-derivatives/quotes_BNBF0:USTF0_20250709
["timestamp","ask_amount","ask_price","bid_price","bid_amount"]
[1752045350628,1.6877768,663.12,662.69,2.038]
[1752045351325,1.637,663.19,662.69,2.038]
[1752045351530,1.6854354,663.12,662.69,2.038]
[1752045358339,1.6854354,663.11,662.69,2.038]
[1752045359139,0.26243156,663.46,662.69,2.038]
[1752045359140,1.6854354,663.1,662.69,2.038]
[1752045360139,1.509,663.09,662.69,2.038]
[1752045360436,3.1944354,663.09,662.69,2.038]
[1752045363142,1.6854354,663.08,662.69,2.038]
[1752045365039,1.509,663.09,662.69,2.038]
[1752045369946,1.509,663.09,662.43,1.95317352]
[1752045370943,1.509,663.09,662.43,0.26252362]
[1752045372548,1.509,663.09,662.44,2.328]
[1752045380854,1.6854354,663.08,662.47,1.6906499]
[1752045382156,1.6854354,663.07,662.49,1.6906499]
[1752045382360,1.6854354,663.06,662.49,1.6906499]
[1752045383256,1.6854354,663.06,662.5,1.6906499]
[1752045383661,1.6854354,663.05,662.51,1.6906499]
[1752045383864,1.6854354,663.05,662.44,2.328]
[1752045383865,1.6854354,663.03,662.53,1.6906499]
[1752045384258,1.6854354,663.03,662.54,1.6906499]
[1752045385363,1.6854354,663.02,662.55,1.6906499]
[1752045386265,1.6854354,663.01,662.56,1.6906499]
[1752045387262,1.6854354,663.0,662.57,1.6906499]
[1752045388366,1.6854354,662.98,662.59,1.6906499]
[1752045389264,1.6854354,662.96,662.61,1.6906499]
[1752045389665,1.6854354,662.95,662.63,1.6906499]
[1752045393274,1.6918196,662.95,662.63,1.6975213]
[1752045396974,1.475,662.94,662.63,1.6975213]
[1752045399076,1.475,662.94,662.62,1.6975213]
[1752045403181,1.475,662.94,662.63,2.151]
[1752045416183,1.6918196,662.99,662.63,2.151]
[1752045416383,1.6918196,662.95,662.63,3.8485213]
[1752045417486,1.6918196,662.96,662.63,2.151]
[1752045418285,1.6918196,662.96,662.61,1.6975213]
[1752045419986,2.309,662.95,662.61,1.6975213]
[1752045421797,2.309,662.95,662.62,2.075]
[1752045427300,2.309,662.95,662.62,3.7725213]
[1752045429501,2.309,662.95,662.62,2.075]
[1752045431301,2.309,662.95,662.62,3.7725213]
[1752045431501,2.309,662.95,662.62,2.075]
[1752045431703,2.309,662.95,662.62,3.7725213]
[1752045432507,2.309,662.95,662.62,2.075]
[1752045434009,2.309,662.95,662.68,1.6975213]
[1752045434409,2.309,662.95,662.66,1.6975213]
[1752045434809,2.309,662.95,662.67,1.6975213]
[1752045435107,2.309,662.95,662.69,1.6975213]
[1752045435611,2.309,662.95,662.68,1.6975213]
[1752045436210,2.309,662.95,662.69,1.6975213]
[1752045436410,2.309,662.95,662.62,2.075]
[1752045436411,2.309,662.95,662.68,1.6975213]
[1752045437110,2.309,662.95,662.62,2.075]
[1752045442813,2.309,662.95,662.63,1.6975213]
[1752045443617,2.309,662.95,662.62,3.7725213]
[1752045444417,2.309,662.95,662.62,2.075]
[1752045447017,2.309,662.95,662.7,1.6975213]
[1752045448419,2.309,662.95,662.69,1.6975213]
[1752045451417,2.309,662.95,662.68,1.6975213]
[1752045452926,2.309,662.95,662.62,2.075]
[1752045453125,2.309,662.95,662.68,1.6900002]
[1752045453626,2.309,662.95,662.64,1.6900002]
[1752045460726,2.309,662.95,662.63,1.6900002]
[1752045460928,2.309,662.95,662.64,1.6900002]
[1752045462424,2.309,662.95,662.63,1.6900002]
[1752045463427,2.309,662.95,662.67,1.6900002]
[1752045467129,2.309,662.95,662.62,2.075]
[1752045468934,2.309,662.95,662.6,1.6900002]
[1752045472137,2.309,662.95,662.61,1.885]
[1752045473838,1.6859718,663.37,662.61,1.885]
[1752045474238,1.6859718,663.36,662.61,1.885]
[1752045474435,1.6859718,663.11,662.61,1.885]
[1752045474939,1.6859718,663.3,662.68,1.6900002]
[1752045476240,1.6859718,663.3,662.67,1.6900002]
[1752045477445,1.617,663.29,662.67,1.6900002]
[1752045477942,1.6859718,663.24,662.61,3.5750002]
[1752045478345,1.6859718,663.24,662.62,1.6900002]
[1752045478548,1.6859718,663.23,662.62,1.6900002]
[1752045481654,1.6859718,663.23,662.61,3.5750002]
[1752045482450,1.6859718,663.23,662.62,1.6900002]
[1752045483055,1.6859718,663.22,662.63,1.6900002]
[1752045484558,1.6859718,663.16,662.61,1.885]
[1752045485058,1.6859718,663.13,662.61,1.885]
[1752045486461,1.6859718,663.12,662.61,1.885]
[1752045487161,1.6859718,663.12,662.58,1.6900002]
[1752045488372,1.6859718,663.11,662.58,1.6900002]
[1752045488661,1.6859718,663.12,662.58,1.6900002]
[1752045489463,1.6859718,663.11,662.59,1.6900002]
[1752045490162,1.6859718,663.11,662.58,1.6900002]
[1752045490360,1.6859718,663.11,662.59,1.6900002]
[1752045490564,1.6859718,663.11,662.59,3.3360002]
[1752045491562,3.8139718,663.1,662.61,1.6900002]
[1752045494869,3.8139718,663.1,662.6,1.6900002]
[1752045495568,1.6859718,663.05,662.59,1.646]
[1752045497067,1.6859718,663.06,662.59,1.646]
[1752045499275,1.6859718,663.08,662.59,1.646]
[1752045500175,3.8139718,663.1,662.59,1.646]
[1752045500674,2.128,663.1,662.59,1.646]
[1752045509979,2.128,663.1,662.6,1.6900002]
[1752045510677,2.128,663.1,662.59,1.646]
[1752045511077,2.128,663.1,662.59,3.3360002]
[1752045511581,2.128,663.1,662.59,1.646]
[1752045512281,2.128,663.1,662.59,3.3360002]
[1752045514183,2.128,663.1,662.59,1.646]
[1752045521685,2.128,663.1,662.51,1.6900002]
[1752045522084,2.128,663.1,662.52,1.6900002]
[1752045522588,1.6859718,663.2,662.52,1.6900002]
[1752045523986,1.6859718,663.15,662.59,1.6900002]
[1752045524389,1.6859718,663.15,662.6,4.0230002]
[1752045525086,3.4019718,663.14,662.6,4.0230002]
[1752045525586,3.4019718,663.14,662.61,1.6900002]
[1752045526091,1.716,663.14,662.6,2.333]
[1752045528391,3.4019718,663.14,662.6,2.333]
[1752045529291,3.4019718,663.14,662.6,4.0230002]
[1752045529988,1.716,663.14,662.6,2.333]
[1752045533393,1.716,663.14,662.65,1.6900002]
[1752045535395,1.716,663.14,662.66,1.6900002]
[1752045535992,1.716,663.14,662.67,1.6900002]
[1752045536491,1.716,663.14,662.68,1.6900002]
[1752045537295,1.6859718,663.2,662.68,1.6900002]
[1752045537595,1.6859718,663.2,662.69,1.6900002]
[1752045538295,1.6859718,663.2,662.6,2.333]
[1752045538296,1.6859718,663.2,662.68,1.6900002]
[1752045538495,1.6859718,663.27,662.6,2.333]
[1752045541196,1.66,663.26,662.6,2.333]
[1752045544799,1.66,663.26,662.63,1.6900002]
[1752045545601,1.66,663.26,662.65,1.6900002]
[1752045546901,1.66,663.26,662.74,1.6900002]
[1752045547306,1.66,663.26,662.73,1.6900002]
[1752045549304,1.66,663.26,662.72,1.6900002]
[1752045549509,1.66,663.26,662.73,1.6900002]
[1752045550307,1.66,663.26,662.74,1.6900002]
[1752045550610,1.66,663.26,662.73,1.6900002]
[1752045551411,1.66,663.26,662.74,1.6900002]
[1752045552112,1.66,663.26,662.75,1.6900002]
[1752045552811,1.66,663.26,662.76,1.6900002]
[1752045554312,1.66,663.26,662.75,1.6900002]
[1752045554912,1.66,663.26,662.72,1.6900002]
[1752045555109,1.66,663.26,662.75,1.6900002]
[1752045555307,1.66,663.26,662.74,1.6900002]
[1752045556312,1.66,663.26,662.73,1.6900002]
[1752045556512,1.66,663.26,662.74,1.6900002]
[1752045560411,1.66,663.26,662.75,1.6900002]
[1752045563313,1.66,663.26,662.74,1.6900002]
[1752045563713,1.66,663.26,662.75,1.6900002]
[1752045564320,1.6859718,663.68,662.86,1.6900002]
[1752045564821,1.6859718,663.69,662.87,1.6900002]
[1752045565022,1.6859718,663.7,662.88,1.6900002]
[1752045565319,1.6859718,663.7,662.86,1.6900002]
[1752045565522,1.6859718,663.7,662.85,1.6900002]
[1752045566319,1.6859718,663.72,662.85,1.6900002]
[1752045566822,1.558,663.71,662.85,1.6900002]
[1752045567117,1.558,663.71,662.84,1.6900002]
[1752045568318,1.558,663.71,662.83,1.6900002]
[1752045569320,1.558,663.71,662.82,1.6900002]
[1752045571928,1.558,663.71,662.81,1.6900002]
[1752045572127,1.558,663.71,662.83,1.771]
[1752045573028,1.558,663.71,662.83,3.4610002]
[1752045573225,1.558,663.71,662.87,1.6900002]
[1752045573526,3.2439718,663.71,662.93,1.6900002]
[1752045574525,1.558,663.71,662.93,1.6900002]
[1752045574728,3.2439718,663.71,662.92,1.6900002]
[1752045574924,3.2439718,663.71,662.83,1.771]
[1752045574925,1.6859718,663.67,662.88,1.6900002]
[1752045575225,1.6859718,663.69,662.89,1.6900002]
[1752045575426,1.6859718,663.69,662.88,1.6900002]
[1752045575631,1.6859718,663.68,662.89,1.6900002]
[1752045575828,1.6859718,663.66,662.87,1.6900002]
[1752045577330,1.6859718,663.67,662.87,1.6900002]
[1752045578130,1.6859718,663.66,662.87,1.6900002]
[1752045578329,1.6859718,663.67,662.86,1.6900002]
[1752045583137,1.6859718,663.67,662.87,1.6900002]
[1752045584237,1.6859718,663.66,662.87,1.6900002]
[1752045585436,1.6859718,663.65,662.88,1.6900002]
[1752045585641,1.6859718,663.65,662.89,1.6900002]
[1752045585940,1.6859718,663.65,662.9,1.6900002]
[1752045586235,1.6859718,663.66,662.9,1.6900002]
[1752045586636,1.6859718,663.65,662.9,1.6900002]
[1752045587941,1.6859718,663.66,662.89,1.6900002]
[1752045588142,1.6859718,663.64,662.9,1.6900002]
[1752045589043,1.6859718,663.65,662.91,1.6900002]
[1752045589238,1.6859718,663.65,662.92,1.6900002]
[1752045590143,1.6859718,663.65,662.91,1.6900002]
[1752045591140,1.6859718,663.64,662.91,1.6900002]
[1752045592241,1.6859718,663.64,662.92,1.6900002]
[1752045593242,1.6859718,663.63,662.92,1.6900002]
[1752045594147,1.6859718,663.62,662.92,1.6900002]
[1752045594843,1.6859718,663.65,662.88,1.6900002]
[1752045596345,1.6859718,663.64,662.88,1.6900002]
[1752045597049,1.558,663.71,662.83,1.771]
[1752045597250,1.6846878,663.64,662.89,1.6874623]
[1752045597950,1.6846878,663.63,662.89,1.6874623]
[1752045598553,1.6846878,663.67,662.83,3.4584623]
[1752045601554,1.6846878,663.66,662.83,3.4584623]
[1752045601755,1.6846878,663.67,662.83,1.771]
[1752045602256,1.6846878,663.66,662.83,1.771]
[1752045603261,1.6846878,663.65,662.83,3.4584623]
[1752045604363,1.6846878,663.64,662.83,3.4584623]
[1752045604758,1.6846878,663.64,662.84,1.6874623]
[1752045605361,1.6846878,663.63,662.85,1.6874623]
[1752045607263,1.6846878,663.62,662.85,1.6874623]
[1752045608460,1.6846878,663.59,662.9,1.6874623]
[1752045610361,1.6846878,663.58,662.91,1.6874623]
[1752045610964,1.6846878,663.59,662.9,1.6874623]
[1752045611268,1.6846878,663.58,662.91,1.6874623]
[1752045611563,1.6846878,663.57,662.92,1.6874623]
[1752045612363,1.6846878,663.56,662.93,1.6874623]
[1752045614370,1.6846878,663.55,662.94,1.6874623]
[1752045616777,1.6846878,663.55,662.95,2.33]
[1752045617066,1.6846878,663.54,662.96,1.6874623]
[1752045617268,1.6846878,663.53,662.96,1.6874623]
[1752045618166,1.6846878,663.54,662.96,1.6874623]
[1752045618369,1.6846878,663.53,662.96,1.6874623]
[1752045619370,1.6846878,663.52,662.97,1.6874623]
[1752045620365,1.6846878,663.52,662.98,1.6874623]
[1752045620867,1.6846878,663.52,662.95,2.33]
[1752045620868,1.6846878,663.51,662.99,1.6874623]
[1752045621067,1.6846878,663.51,662.98,1.6874623]
[1752045621271,1.6846878,663.51,662.99,1.6874623]
[1752045621572,1.6846878,663.5,663.0,1.6874623]
[1752045622272,1.6846878,663.49,663.01,1.6874623]
[1752045623472,1.6846878,663.48,663.02,1.6874623]
[1752045624270,1.6846878,663.46,663.04,1.6874623]
[1752045625173,2.329,663.45,663.04,1.6874623]
[1752045626773,4.0136878,663.45,663.05,1.6874623]
[1752045627671,2.329,663.45,663.05,1.6874623]
[1752045628073,2.329,663.45,662.95,2.33]
[1752045628374,4.0215162,663.45,663.05,1.6953032]
[1752045629474,4.0215162,663.45,663.06,1.6953032]
[1752045630779,1.6925162,663.44,663.07,1.6953032]
[1752045631278,1.6925162,663.43,663.08,1.6953032]
[1752045632274,1.6925162,663.44,663.07,1.6953032]
[1752045633379,2.329,663.45,663.1,1.6953032]
[1752045634075,2.329,663.45,663.09,1.6953032]
[1752045635278,2.329,663.45,662.96,2.2625665]
[1752045635479,2.329,663.45,663.08,1.6956878]
[1752045636080,2.329,663.45,663.09,1.6956878]
[1752045637477,2.329,663.45,663.08,1.6956878]
[1752045637681,2.329,663.45,663.09,1.6956878]
[1752045638278,2.329,663.45,663.08,1.6956878]
[1752045638579,2.329,663.45,663.09,1.6956878]
[1752045641080,2.329,663.45,663.09,1.6955438]
[1752045643385,2.329,663.45,663.08,1.6955438]
[1752045644180,2.329,663.45,663.09,1.6955438]
[1752045645283,2.329,663.45,663.08,1.6955438]
[1752045651884,2.329,663.45,663.07,1.6955438]
[1752045653184,2.329,663.45,663.08,1.6955438]
[1752045655388,2.329,663.45,663.09,1.6955438]
[1752045657285,2.329,663.45,663.1,1.6955438]
[1752045659290,1.6928652,663.44,663.07,1.6955438]
[1752045661787,1.6928652,663.43,663.08,1.6955438]
[1752045662092,1.6928652,663.44,663.08,1.6955438]
[1752045662591,2.329,663.45,663.01,1.6955438]
[1752045663291,2.329,663.45,662.95,2.33]
[1752045667792,2.329,663.45,662.91,1.6955438]
[1752045671495,2.329,663.45,662.92,2.238]
[1752045672496,2.329,663.45,662.92,3.9333814]
[1752045673001,2.329,663.45,662.99,1.6953814]
[1752045673600,2.329,663.45,663.0,1.6953814]
[1752045673800,2.329,663.45,662.92,2.238]
[1752045673801,2.329,663.45,662.99,1.6953814]
[1752045674101,4.0216876,663.45,663.03,1.6953814]
[1752045674301,1.6926876,663.45,663.03,1.6953814]
[1752045674998,1.6926876,663.45,663.04,1.6953814]
[1752045675802,1.6926876,663.44,663.04,1.6953814]
[1752045677003,2.07,663.43,663.04,1.6953814]
[1752045677496,2.07,663.43,663.03,1.6953814]
[1752045678199,2.07,663.43,663.04,1.6953814]
[1752045683510,2.07,663.43,663.03,1.6953814]
[1752045683714,2.07,663.43,663.04,1.6953814]
[1752045687015,2.07,663.43,663.03,1.6953814]
[1752045687214,2.07,663.43,663.04,1.6953814]
[1752045688618,2.07,663.43,663.03,1.6953814]
[1752045689515,2.07,663.43,662.92,2.238]
[1752045689516,2.07,663.43,663.04,1.6953814]
[1752045690916,2.07,663.43,662.92,2.238]
[1752045691219,2.07,663.43,663.04,1.6951857]
[1752045693117,2.07,663.43,663.05,1.6951857]
[1752045696325,2.07,663.43,663.03,1.6951857]
[1752045697125,2.07,663.43,663.04,1.6951857]
[1752045699930,2.07,663.43,663.05,1.6951857]
[1752045706229,3.7629935,663.43,663.07,1.6951857]
[1752045707231,1.6929935,663.42,663.07,1.6951857]
[1752045710738,1.6929935,663.42,663.08,2.287]
[1752045711633,2.07,663.43,663.08,2.287]
[1752045712536,3.7629935,663.43,663.08,2.287]
[1752045712934,2.07,663.43,663.08,2.287]
[1752045715240,3.7629935,663.43,663.08,2.287]
[1752045719342,1.6929935,663.42,663.08,2.287]
[1752045722346,1.6929935,663.42,663.08,3.9821857]
[1752045722851,1.6929935,663.41,663.09,1.6951857]
[1752045725550,1.6929935,663.4,663.09,1.6951857]
[1752045726757,1.6929935,663.41,663.08,3.9821857]
[1752045730955,1.6929935,663.4,663.09,1.6951857]
[1752045731758,2.07,663.43,663.09,1.6951857]
[1752045731759,1.6929935,663.41,663.09,1.6951857]
[1752045731958,1.6929935,663.41,663.08,3.9821857]
[1752045732158,1.6929935,663.4,663.08,2.287]
[1752045733460,1.6929935,663.41,663.08,2.287]
[1752045736466,3.6079935,663.4,663.08,2.287]
[1752045737968,1.6929935,663.37,663.08,2.287]
[1752045738169,1.6929935,663.34,663.08,2.287]
[1752045738468,1.6929935,663.35,663.08,2.287]
[1752045739468,1.6929935,663.36,663.08,2.287]
[1752045740370,1.6929935,663.37,663.08,2.287]
[1752045741672,1.6929935,663.38,663.08,2.287]
[1752045741871,1.6929935,663.37,663.08,2.287]
[1752045742168,1.6929935,663.38,663.08,2.287]
[1752045743772,1.6929935,663.36,663.08,2.287]
[1752045745275,1.6929935,663.37,663.08,2.287]
[1752045751378,1.6929935,663.38,663.08,2.287]
[1752045751574,1.6929935,663.37,663.08,2.287]
[1752045752180,1.6929935,663.36,663.08,2.287]
[1752045756290,1.6929935,663.37,663.08,2.287]
[1752045763098,1.6929935,663.38,663.08,2.287]
[1752045763796,1.6929935,663.38,662.88,1.6951857]
[1752045767702,1.6929935,663.38,662.89,2.126]
[1752045768297,1.6929935,663.39,662.89,2.126]
[1752045771901,1.6929935,663.38,662.89,2.126]
[1752045773001,1.6929935,663.38,662.89,3.8211857]
[1752045774304,1.6929935,663.37,662.89,3.8211857]
[1752045775504,1.6929935,663.37,662.9,1.6951857]
[1752045776607,1.6929935,663.38,662.89,2.126]
[1752045777205,1.6929935,663.38,662.89,3.8211857]
[1752045777707,1.6929935,663.38,662.89,2.126]
[1752045778204,1.6929935,663.37,662.89,3.8211857]
[1752045778609,1.6929935,663.38,662.89,3.8211857]
[1752045779408,1.6929935,663.37,662.89,3.8211857]
[1752045781610,1.6929935,663.36,662.89,2.126]
[1752045781810,1.6929935,663.44,662.89,2.126]
[1752045782010,1.6929935,663.39,662.89,2.126]
[1752045784407,1.622,663.38,662.89,2.126]
[1752045790209,3.3149935,663.38,662.89,2.126]
[1752045790610,3.3123023,663.38,662.89,2.126]
[1752045791611,1.6903023,663.37,662.89,2.126]
[1752045791913,1.6903023,663.33,662.89,2.126]
[1752045793214,1.6903023,663.32,662.89,2.126]
[1752045796211,1.6912543,663.32,662.89,2.126]
[1752045797216,1.6912543,663.31,662.89,2.126]
[1752045798617,1.6912543,663.3,662.89,2.126]
[1752045799320,1.6912543,663.29,662.89,2.126]
[1752045799619,1.6912543,663.3,662.89,2.126]
[1752045800318,1.6912543,663.29,662.89,2.126]
[1752045801420,1.6912543,663.3,662.89,2.126]
[1752045802016,1.6912543,663.29,662.89,2.126]
[1752045802920,1.6912543,663.28,662.89,2.126]
[1752045803118,1.6912543,663.3,662.89,2.126]
[1752045803924,1.6912543,663.31,662.89,2.126]
[1752045806124,1.6912543,663.3,662.89,2.126]
[1752045806625,1.6912543,663.31,662.89,2.126]
[1752045807325,1.6912543,663.34,662.89,2.126]
[1752045808922,1.6912543,663.35,662.89,2.126]
[1752045812722,1.6912543,663.35,662.76,1.6945016]
[1752045813029,1.6912543,663.35,662.77,1.6945016]
[1752045813828,1.6912543,663.34,662.77,1.6945016]
[1752045816027,1.6912543,663.34,662.78,2.047]
[1752045816530,1.6912543,663.34,662.78,3.7415016]
[1752045817128,1.6912543,663.31,662.82,1.6945016]
[1752045818833,1.6912543,663.28,662.86,1.6945016]
[1752045820435,1.6912543,663.28,662.87,1.6945016]
[1752045820931,1.6912543,663.28,662.86,1.6945016]
[1752045821433,1.6912543,663.28,662.87,1.6945016]
[1752045824237,1.6912543,663.3,662.84,1.6945016]
[1752045825240,1.6912543,663.3,662.83,1.6945016]
[1752045825434,1.6912543,663.3,662.84,1.6945016]
[1752045826736,1.6912543,663.3,662.83,1.6945016]
[1752045826935,1.881,663.29,662.83,1.6945016]
[1752045827737,1.881,663.29,662.82,1.6945016]
[1752045828938,1.881,663.29,662.81,1.6945016]
[1752045830540,1.881,663.29,662.82,1.596]
[1752045838245,1.881,663.29,662.82,3.2905016]
[1752045838852,3.5722543,663.29,662.83,1.6945016]
[1752045839248,3.5722543,663.29,662.84,1.6945016]
[1752045841249,1.6912543,663.28,662.85,1.6945016]
[1752045841549,3.5722543,663.29,662.84,1.6945016]
[1752045841746,1.6912543,663.27,662.86,1.6945016]
[1752045843247,1.881,663.29,662.82,1.596]
[1752045843248,1.6912543,663.28,662.85,1.6945016]
[1752045846356,1.6938393,663.28,662.85,1.6969078]
[1752045851458,1.6938393,663.26,662.88,1.6969078]
[1752045851959,1.6938393,663.25,662.89,1.6969078]
[1752045852754,1.6938393,663.25,662.88,1.6969078]
[1752045853057,1.6938393,663.25,662.89,1.6969078]
[1752045854855,1.6938393,663.25,662.88,1.6969078]
[1752045855062,1.6938393,663.26,662.87,1.6969078]
[1752045855758,1.6938393,663.25,662.86,1.6969078]
[1752045856058,1.6938393,663.24,662.85,1.6969078]
[1752045856261,1.6938393,663.25,662.85,1.6969078]
[1752045858761,1.881,663.29,662.82,1.596]
[1752045858762,1.6938393,663.24,662.86,1.6969078]
[1752045859266,1.6938393,663.25,662.85,1.6969078]
[1752045862968,1.6938393,663.25,662.86,1.6969078]
[1752045863160,1.6938393,663.25,662.85,1.6969078]
[1752045863766,1.6938393,663.24,662.86,1.6969078]
[1752045864462,1.6938393,663.24,662.87,1.6969078]
[1752045865261,1.6938393,663.26,662.84,1.6969078]
[1752045866567,1.6938393,663.27,662.83,1.6969078]
[1752045867167,1.6938393,663.32,662.82,1.596]
[1752045868364,1.6938393,663.3,662.82,1.596]
[1752045868569,1.6938393,663.31,662.82,1.596]
[1752045868965,2.037,663.3,662.82,1.596]
[1752045876976,1.6938393,663.24,662.83,1.6969078]
[1752045877980,1.6938393,663.24,662.82,3.2929078]
[1752045879877,1.6938393,663.25,662.82,3.2929078]
[1752045882579,1.6938393,663.27,662.82,1.596]
[1752045883981,1.6938393,663.26,662.82,1.596]
[1752045884482,1.6938393,663.27,662.82,1.596]
[1752045885986,1.6938393,663.28,662.82,1.596]
[1752045887086,1.6938393,663.27,662.82,1.596]
[1752045887586,1.6938393,663.27,662.79,1.6969078]
[1752045888888,1.6938393,663.28,662.78,1.6969078]
[1752045890788,1.6938393,663.28,662.77,1.6969078]
[1752045891284,1.6938393,663.28,662.78,1.525]
[1752045894289,1.6938393,663.28,662.78,3.2219078]
[1752045895087,1.865,663.27,662.78,3.2219078]
[1752045895891,3.5588393,663.27,662.79,1.6969078]
[1752045896992,1.6938393,663.26,662.8,1.6969078]
[1752045897693,3.5588393,663.27,662.79,1.6969078]
[1752045898695,1.6938393,663.26,662.8,1.6969078]
[1752045899491,3.5588393,663.27,662.78,3.2219078]
[1752045900294,3.5588393,663.27,662.79,1.6969078]
[1752045900595,1.6938393,663.26,662.8,1.6969078]
[1752045901094,1.6938393,663.26,662.79,1.6969078]
[1752045901297,1.6938393,663.26,662.8,1.6969078]
[1752045901496,3.5588393,663.27,662.79,1.6969078]
[1752045901699,3.5588393,663.27,662.78,3.2219078]
[1752045902398,3.5588393,663.27,662.79,1.6969078]
[1752045903299,1.865,663.27,662.78,3.2219078]
[1752045904997,1.865,663.27,662.78,1.525]
[1752045907096,1.6938393,663.29,662.78,1.525]
[1752045907303,1.6938393,663.28,662.78,1.525]
[1752045908503,1.6938393,663.29,662.78,1.525]
[1752045910101,2.263,663.28,662.78,1.525]
[1752045911602,3.9568393,663.28,662.78,1.525]
[1752045912806,1.6938393,663.27,662.78,3.2219078]
[1752045913701,1.6938393,663.27,662.79,1.6969078]
[1752045915202,1.6938393,663.26,662.79,1.6969078]
[1752045918108,1.6932435,663.26,662.79,1.6964794]
[1752045918509,1.6932435,663.26,662.8,1.6964794]
[1752045918908,1.6932435,663.24,662.78,3.2214794]
[1752045919209,1.6932435,663.23,662.8,1.6964794]
[1752045919709,1.6932435,663.22,662.81,1.6964794]
[1752045920512,1.6932435,663.22,662.82,1.6964794]
[1752045921512,1.6932435,663.21,662.83,1.6964794]
[1752045922512,1.6932435,663.2,662.84,1.6964794]
[1752045924815,1.6932435,663.2,662.85,1.6964794]
[1752045926717,1.865,663.19,662.85,1.6964794]
[1752045928117,1.865,663.19,662.84,1.6964794]
[1752045928322,3.5582435,663.19,662.85,1.6964794]
[1752045933526,3.5582435,663.19,662.84,1.6964794]
[1752045933728,3.5582435,663.19,662.85,1.6964794]
[1752045933926,3.5582435,663.19,662.84,1.6964794]
[1752045935030,3.5582435,663.19,662.85,1.6964794]
[1752045935231,3.5582435,663.19,662.84,1.6964794]
[1752045938528,1.865,663.19,662.84,1.6964794]
[1752045938832,3.5582435,663.19,662.85,1.6964794]
[1752045940235,1.865,663.19,662.84,1.6964794]
[1752045940836,1.6932435,663.2,662.84,1.6964794]
[1752045942836,1.6932435,663.19,662.85,1.6964794]
[1752045943936,1.6932435,663.19,662.84,1.6964794]
[1752045944240,1.688,663.18,662.84,1.6964794]
[1752045944440,1.688,663.18,662.83,1.6964794]
[1752045947441,1.688,663.18,662.82,1.6964794]
[1752045948237,1.688,663.18,662.83,2.339]
[1752045949639,1.688,663.18,662.83,4.0354794]
[1752045952443,1.688,663.18,662.83,2.339]
[1752045955242,1.688,663.18,662.83,4.0354794]
[1752045955740,1.688,663.18,662.83,2.339]
[1752045955940,1.688,663.18,662.83,4.0354794]
[1752045959952,1.688,663.18,662.84,1.6964794]
[1752045962249,1.688,663.18,662.85,1.6964794]
[1752045964552,1.688,663.18,662.86,2.229]
[1752045969352,3.3812435,663.18,662.86,2.229]
[1752045970848,1.688,663.18,662.86,2.229]
[1752045972754,3.3812435,663.18,662.86,2.229]
[1752045974354,3.3812435,663.18,662.86,3.9254794]
[1752045974856,3.3812435,663.18,662.86,2.229]
[1752045975157,1.688,663.18,662.86,2.229]
[1752045980565,1.688,663.18,662.84,1.6964794]
[1752045980866,1.688,663.18,662.83,1.6964794]
[1752045982366,1.688,663.18,662.84,1.6964794]
[1752045982566,1.688,663.18,662.83,1.6964794]
[1752045984270,1.688,663.18,662.84,2.02]
[1752045984464,3.3812435,663.18,662.84,3.7164794]
[1752045984665,3.3812435,663.18,662.84,2.02]
[1752045985272,1.6932435,663.17,662.84,2.02]
[1752045985572,3.3812435,663.18,662.84,2.02]
[1752045987174,1.6932435,663.18,662.84,2.02]
[1752045989676,1.97,663.17,662.84,2.02]
[1752045990779,3.6632435,663.17,662.84,2.02]
[1752045991276,1.97,663.17,662.84,2.02]
[1752045997294,1.97,663.17,662.7,1.6964794]
[1752045998197,1.97,663.17,662.68,1.6964794]
[1752045998394,1.97,663.17,662.67,1.6964794]
[1752045999995,1.97,663.17,662.68,1.846]
[1752046001495,3.6632435,663.17,662.74,1.6964794]
[1752046002294,1.97,663.17,662.74,1.6964794]
[1752046002494,3.6632435,663.17,662.74,1.6964794]
[1752046003399,1.97,663.17,662.74,1.6964794]
[1752046004297,1.6932435,663.15,662.78,1.6964794]
[1752046004594,1.6932435,663.15,662.77,1.6964794]